Cogmind - Beta 13 @@@ ROGUE MODE // 2024.04.30 @ 21:47:44 Player: satan5 Result: Destroyed by G-50 Soldier with Heavy Laser Performance ------------- Evolutions (3) 1500 Regions Visited (6) 1200 Robots Destroyed (122) 610 Value Destroyed (3464) 3464 Prototype IDs (12) 240 Alien Tech Used (0) 0 Bonus (144) 144 TOTAL SCORE: 7158 Bonus ------- High Alert Combat Kills 144 Cogmind --------- Core Integrity 0/700 Matter 202/300 Energy 98/100 System Corruption 29% Temperature Cool (10) Movement Walking (120) Location -7/Lower Caves Parts ------- > --- POWER (1) -------- (None) > --- PROPULSION (4) --- Aluminum Leg > --- UTILITY (6) ------ Weapon Shielding > --- WEAPON (2) ------- (None) > --- INVENTORY (5) ---- Aluminum Leg Improved Cooling System Gauss Cannon Gauss Cannon Heavy Rocket Launcher Peak State ------------ > --- POWER ------------ Cooled Deuterium Engine > --- PROPULSION ------- Titanium Leg Improved Titanium Leg Armored Huge Wheel > --- UTILITY ---------- Improved Cooling System High-capacity Storage Unit Improved Signal Interpreter Hacking Suite Hacking Suite Hacking Suite > --- WEAPON ----------- Plasma Cannon Makeshift Axe > --- INVENTORY -------- Cooled Deuterium Engine Aluminum Leg Cooled VTOL Module Medium Storage Unit Subdweller Optics Improved Sensor Array Improved Terrain Scanner Advanced Terrain Scan Processor Transmission Jammer Hacking Suite Dynamic Insulation System Advanced Beam Cannon Subdweller Machine Gun Gauss Cannon Gauss Cannon Gauss Cannon Subdweller Shrapnel Launcher Heavy Rocket Launcher Multitool Powered Hammer [Rating: 51] Favorites ----------- Power Light Ion Engine Engine Light Ion Engine Power Core Light Nuclear Core Propulsion Light Treads Treads Light Treads Leg Improved Titanium Leg Wheel Wheel Utility High-capacity Storage Unit Device Improved Terrain Scanner Storage High-capacity Storage Unit Processor Improved Signal Interpreter Hackware Hacking Suite Protection Weapon Shielding Weapon Subdweller Machine Gun Energy Gun Advanced Beam Rifle Energy Cannon Plasma Cannon Ballistic Gun Subdweller Machine Gun Ballistic Cannon Gauss Cannon Launcher Subdweller Shrapnel Launcher Special Weapon Mining Laser Slashing Weapon Scythe Build | -11 -10 -10 -8 -7 -7 -7 ------- Run | Yrd Mat Sub Mat Fac Low Low Slots Evolved 6 | . . . 4 2 . . Power . | . . . . . . . Propulsion 2 | . . . 2 . . . Utility 4 | . . . 2 2 . . Weapon . | . . . . . . . Parts Attached 143 | 7 3 18 44 61 8 2 Power 8 | 1 . 2 2 3 . . Engine 7 | 1 . 2 1 3 . . Core 1 | . . . 1 . . . Reactor . | . . . . . . . Propulsion 29 | 2 . 2 14 8 2 1 Treads 8 | 2 . 2 4 . . . Leg 17 | . . . 10 5 1 1 Wheel 4 | . . . . 3 1 . Hover . | . . . . . . . Flight . | . . . . . . . Utility 34 | 2 1 2 6 19 3 1 Device 24 | 1 . 2 4 15 2 . Storage 2 | 1 1 . . . . . Processor 4 | . . . 2 1 1 . Hackware 3 | . . . . 3 . . Protection 1 | . . . . . . 1 Artifact . | . . . . . . . Weapon 72 | 2 2 12 22 31 3 . Energy Gun 14 | . . 1 10 3 . . Energy Cannon 12 | . . 3 4 4 1 . Ballistic Gun 15 | 2 . 4 1 8 . . Ballistic Cannon 4 | . 1 1 . 2 . . Launcher 15 | . . 2 6 6 1 . Special Weapon 3 | . 1 1 1 . . . Impact Weapon . | . . . . . . . Slashing Weapon 9 | . . . . 8 1 . Piercing Weapon . | . . . . . . . Special Melee Weapon . | . . . . . . . Unidentified Prototypes 8 | . . . 6 2 . . Parts Lost 21 | . . 3 2 8 8 . Power 2 | . . . 1 1 . . Propulsion 9 | . . 2 . 5 2 . Utility 8 | . . 1 1 1 5 . Weapon 2 | . . . . 1 1 . Highest Loss Streak 7 | . . 1 1 2 7 . To Critical Strikes . | . . . . . . . Average Slot Usage (%) 94 | . 100 98 93 96 81 12 Engine 10 | . 14 14 8 7 6 . Treads 13 | . 28 27 6 . . . Leg 12 | . . . 26 23 17 7 Wheel 1 | . . . . 3 4 . Device 12 | . 14 12 16 11 6 . Storage 10 | . 14 14 9 7 6 . Processor 5 | . . . 7 11 6 . Hackware 6 | . . . . 13 19 . Energy Gun 2 | . . 2 7 3 . . Energy Cannon 5 | . . 5 9 4 5 . Ballistic Gun 8 | . 21 15 . 3 . . Ballistic Cannon 1 | . 5 . . 1 . . Launcher 1 | . . 2 . . . . Naked Turns 29 | . . . . . 29 . Heaviest Build 70 | 12 49 56 67 70 63 1 Greatest Support 80 | 40 40 40 80 80 59 10 Greatest Overweight (x) 6 | . 1 1 3 6 2 . Average Overweight (x) . | . . 1 . 1 1 . Largest Inventory Capacity 20 | 8 20 20 20 20 20 5 Average Capacity 18 | 5 15 20 20 20 18 5 Most Carried 20 | 5 16 20 20 20 20 5 Average Carried 17 | 4 8 18 19 19 17 4 Final Capacity 20 | 8 20 20 20 20 5 5 Final Carried 20 | 4 16 19 20 20 4 5 Class Distribution -------------------- 67% | Mutant 27% | Hacker-Mutant Dominant Class ---------------- Mutant | -10/Materials Mutant | -10/Subcaves Mutant | -8/Materials Hacker-Mutant | -7/Factory Hacker-Mutant | -7/Lower Caves Mutant | -7/Lower Caves Resources | -11 -10 -10 -8 -7 -7 -7 ----------- Run | Yrd Mat Sub Mat Fac Low Low Matter Collected 3404 | 272 220 599 572 1442 155 144 Remotely . | . . . . . . . Salvage Created 4254 | 62 539 301 1126 2161 65 . Parts 236 | 8 27 24 69 104 4 . Haulers Intercepted 12 | . 1 . 5 6 . . Recyclers Shooed 10 | . 2 . . 8 . . Parts Field Recycled . | . . . . . . . Retrieved Matter . | . . . . . . . Parts Self-Destructed 12 | . . 10 . . 1 1 Prevented 2 | . . . . . . 2 Kills | -11 -10 -10 -8 -7 -7 -7 ------- Run | Yrd Mat Sub Mat Fac Low Low Combat Hostiles Destroyed 70 | . 11 12 21 24 2 . Guns 24 | . 8 3 5 8 . . Cannons 20 | . 3 5 4 8 . . AOE 26 | . . 4 12 8 2 . Classes Destroyed 14 | 1 5 1 5 2 . . Worker 8 | . . . . 8 . . Builder 6 | . . . 2 4 . . Tunneler 4 | 3 . . . 1 . . Hauler 12 | . 1 . 5 6 . . Recycler 12 | . 1 . 2 9 . . Operator 2 | . . . 1 1 . . Watcher 8 | . 1 . 2 5 . . Swarmer 13 | . 3 4 6 . . . Grunt 30 | . 8 . 9 11 2 . Brawler 2 | . . . 1 1 . . Sentry 8 | . . . 4 4 . . Hunter 4 | . . . 1 3 . . Programmer 5 | . . . . 5 . . Subdweller 8 | . . 8 . . . . Best Kill Streak 9 | 2 5 4 9 8 2 . Combat Bots Only 6 | . 4 4 6 4 2 . Max Kills in Single Turn 5 | 1 2 1 4 5 1 . Gunslinging . | . . . . . . . Exploded 3 | . . 1 3 2 1 . Melee . | . . . . . . . Uniques/NPCs Destroyed . | . . . . . . . Combat | -11 -10 -10 -8 -7 -7 -7 -------- Run | Yrd Mat Sub Mat Fac Low Low Hostile Shots Fired 539 | . 47 64 70 291 44 23 Missed 185 | . 17 19 19 109 10 11 Damage Taken 4896 | . 320 821 710 2211 706 128 Core 995 | . 68 137 81 419 191 99 Absorbed by Shields 229 | . . . . 229 . . Regen/Repaired (Parts) 75 | . . . 75 . . . Core Remaining (%) 67 | 100 . 18 85 . . . Volleys Fired 359 | 7 35 103 61 142 11 . Largest 2 | 2 2 2 2 2 1 . Hottest 148 | 40 100 120 148 128 68 . Shots Fired 641 | 14 67 160 117 271 12 . Gun 335 | 14 52 85 46 138 . . Cannon 262 | . 12 65 58 120 7 . Launcher 39 | . . 10 11 13 5 . Special 5 | . 3 . 2 . . . Kinetic 355 | 14 64 106 20 146 5 . Thermal 286 | . 3 54 97 125 7 . Explosive . | . . . . . . . Electromagnetic . | . . . . . . . Robot Hit Streak 17 | 5 9 17 5 16 4 . Robot Miss Streak 9 | 1 3 2 3 9 1 . Penetration Max 1 | . . . . 1 . . Secondary Targets 2 | . 2 . . . . . Max Gunslinging Chain 1 | . 1 . . . . . Shots Hit Robots 318 | 10 41 40 60 163 4 . Core Hits 182 | 4 21 19 49 84 5 . Critical Kills 1 | . . . . 1 . . Critical Parts Destroyed 2 | . . . . 2 . . Critical Strikes 7 | . . . 1 6 . . Burn 2 | . . . 1 1 . . Destroy 3 | . . . . 3 . . Blast 2 | . . . . 2 . . Melee Attacks 23 | . . . . 19 4 . Impact . | . . . . . . . Slashing 23 | . . . . 19 4 . Piercing . | . . . . . . . Sneak Attacks 1 | . . . . 1 . . Combat Hostiles . | . . . . . . . Follow-up Attacks . | . . . . . . . Damage Inflicted 10224 | 115 565 1112 2401 5620 411 . Guns 3203 | 115 431 178 592 1887 . . Cannons 3006 | . 134 402 718 1752 . . Explosions 3955 | . . 532 1091 1921 411 . Melee 60 | . . . . 60 . . Ramming . | . . . . . . . Kinetic 5954 | 115 565 630 1223 3010 411 . Thermal 4177 | . . 482 1178 2517 . . Explosive 33 | . . . . 33 . . Electromagnetic . | . . . . . . . Impact . | . . . . . . . Slashing 60 | . . . . 60 . . Piercing . | . . . . . . . Highest Corruption 29 | . . . 6 11 29 29 Average Corruption 8 | . . . 4 7 13 29 Corruption Purged . | . . . . . . . Corruption Blocked . | . . . . . . . Effects 145 | . . . 29 83 27 6 Message Errors 33 | . . . 7 16 8 2 Matter Fused 29 | . . . 5 16 8 . Heat Flow Errors 17 | . . . 4 11 2 . Energy Discharges 15 | . . . 2 9 4 . Parts Rejected 3 | . . . 1 1 . 1 Data Loss (minor) 27 | . . . 7 15 4 1 Data Loss (major) 6 | . . . 1 4 . 1 Misfires 5 | . . . 1 3 1 . Alerts 1 | . . . . . . 1 Misdirections 1 | . . . . 1 . . Weapon Failures 8 | . . . 1 7 . . Overload Shots . | . . . . . . . Overflow Damage 290 | . . 43 44 179 24 . Projectiles 118 | . . . 39 79 . . Explosions 172 | . . 43 5 100 24 . Melee . | . . . . . . . Knockbacks 6 | . . . . 6 . . Impact . | . . . . . . . Kinetic 6 | . . . . 6 . . Secondary . | . . . . . . . Self-Inflicted Damage 531 | . . 17 91 216 207 . Shots 14 | . . 3 2 5 4 . Rammed . | . . . . . . . Targets Rammed . | . . . . . . . Kicked . | . . . . . . . Crushed . | . . . . . . . Highest Temperature 414 | . 24 . 414 376 230 . Average Temperature 84 | . 11 . 123 63 95 . Received Heat Transfer 944 | . 144 75 180 407 84 54 Effects 14 | . . . 9 5 . . Shutdowns 2 | . . . 2 . . . Energy Bleed 4 | . . . 4 . . . Interference 7 | . . . 2 5 . . Matter Decay 1 | . . . 1 . . . Siege Activations . | . . . . . . . Robots Corrupted . | . . . . . . . Combat Hostiles . | . . . . . . . Parts Fried . | . . . . . . . Impact Corruptions . | . . . . . . . Robots Melted . | . . . . . . . Combat Hostiles . | . . . . . . . Parts Melted 13 | . . 3 3 7 . . Heat Transferred 6859 | . . 951 2000 3908 . . Parts Sabotaged . | . . . . . . . Parts Stolen . | . . . . . . . Parts Stripped . | . . . . . . . Power Chain Reactions . | . . . . . . . Alert | -11 -10 -10 -8 -7 -7 -7 ------- Run | Yrd Mat Sub Mat Fac Low Low Peak Influence 701 | 15 186 . 701 652 . . Initial 141 | . 9 . 129 141 . . Average 224 | 7 88 . 350 229 . . Maximum Alert Level 3 | . . . 3 2 . . Low Security (%) 50 | 100 100 . 22 43 . . Level 1 34 | . . . 39 44 . . Level 2 14 | . . . 35 11 . . Level 3 . | . . . 2 . . . Level 4 . | . . . . . . . Level 5 . | . . . . . . . High Security . | . . . . . . . Max Security . | . . . . . . . Squads Dispatched 23 | . 3 . 6 14 . . Investigation 5 | . 2 . 1 2 . . Extermination 4 | . . . . 4 . . Reinforcement 9 | . 1 . 1 7 . . Assault 5 | . . . 4 1 . . Garrison . | . . . . . . . Intercept . | . . . . . . . Searches Triggered . | . . . . . . . Construction Impeded 2 | . . . . 2 . . Haulers Reinforced 2 | . . . . 2 . . Active Scanning Responses . | . . . . . . . Cargo Convoy Interrupts . | . . . . . . . Stealth | -11 -10 -10 -8 -7 -7 -7 --------- Run | Yrd Mat Sub Mat Fac Low Low Distress Signals 8 | . 1 . 4 3 . . Communications Jammed . | . . . . . . . Distress Signals . | . . . . . . . Times Spotted 119 | . 14 20 33 43 5 4 Peak Tracking Total 6 | . 4 6 6 5 4 4 Tactical Retreats 9 | . . 2 2 1 3 1 Traps | -11 -10 -10 -8 -7 -7 -7 ------- Run | Yrd Mat Sub Mat Fac Low Low Traps Triggered 9 | . 2 1 2 4 . . Indirectly . | . . . . . . . Trap Hack Attempts . | . . . . . . . Triggered . | . . . . . . . Disarmed . | . . . . . . . Reprogrammed . | . . . . . . . Reused . | . . . . . . . Traps Extracted . | . . . . . . . Installed 2 | . . 1 . 1 . . Triggered 3 | . . . . . . 3 Most Traps Carried 1 | . . 1 1 1 . . Machines | -11 -10 -10 -8 -7 -7 -7 ---------- Run | Yrd Mat Sub Mat Fac Low Low Machines Disabled 31 | . 2 . 4 25 . . Max in Single Turn 13 | . 1 . 1 13 . . Garrison Access 2 | . . . . 2 . . Machines Repaired . | . . . . . . . Machines Dismantled . | . . . . . . . Machines Sabotaged . | . . . . . . . Overloaded Fab Kills . | . . . . . . . Hacking | -11 -10 -10 -8 -7 -7 -7 --------- Run | Yrd Mat Sub Mat Fac Low Low Machines Accessed 22 | . 1 1 6 13 . 1 Terminals 14 | . 1 . 5 8 . . Fabricators 3 | . . . . 3 . . Repair Stations 1 | . . . 1 . . . Recycling Units . | . . . . . . . Scanalyzers . | . . . . . . . Garrison Access 2 | . . . . 2 . . Total Hacks 51 | . 2 1 18 29 . 1 Successful 35 | . 1 1 12 20 . 1 Failed 15 | . 1 . 6 8 . . Catastrophic 3 | . . . 2 1 . . Database Lockouts 1 | . . . . 1 . . Manual 26 | . 2 . 14 10 . . Terminals 37 | . 2 . 15 20 . . Fabricators 6 | . . . . 6 . . Repair Stations 3 | . . . 3 . . . Recycling Units . | . . . . . . . Scanalyzers . | . . . . . . . Garrison Access 3 | . . . . 3 . . Terminal Hacks 13 | . . 1 3 8 . 1 Record 1 | . . 1 . . . . Part Schematic 1 | . . . . 1 . . Prototype ID Bank 1 | . . . . 1 . . Open Door 1 | . . . . . . 1 Level Access Points 1 | . . . 1 . . . Branch Access Points 1 | . . . . 1 . . Terminal Index 1 | . . . . 1 . . Alert Level 1 | . . . . 1 . . Unreport Threat 4 | . . . 2 2 . . Locate Traps 1 | . . . . 1 . . Fabricator Hacks 4 | . . . . 4 . . Network Status 1 | . . . . 1 . . Load Schematic 2 | . . . . 2 . . Build 1 | . . . . 1 . . Repair Station Hacks 3 | . . . 3 . . . Scan Component 2 | . . . 2 . . . Repair 1 | . . . 1 . . . Recycling Unit Hacks . | . . . . . . . Scanalyzer . | . . . . . . . Garrison Access Hacks 2 | . . . . 2 . . Seal Access 2 | . . . . 2 . . Unauthorized Hacks 13 | . 1 . 6 6 . . Terminals 13 | . 1 . 6 6 . . Track 3 | . . . 2 1 . . Assimilate 1 | . . . . 1 . . Botnet 9 | . 1 . 4 4 . . Fabricators . | . . . . . . . Repair Stations . | . . . . . . . Recycling Units . | . . . . . . . Scanalyzers . | . . . . . . . Garrison Access . | . . . . . . . Data Cores Recovered . | . . . . . . . Used . | . . . . . . . Hacking Detections 17 | . 1 . 5 11 . . Full Trace Events 2 | . . . . 2 . . Feedback Events . | . . . . . . . Feedback Blocked . | . . . . . . . Robot Schematics Acquired . | . . . . . . . Robots Built . | . . . . . . . Authchips . | . . . . . . . Time . | . . . . . . . Total Robot Build Rating . | . . . . . . . Part Schematics Acquired 1 | . . . . 1 . . Parts Built 1 | . . . . 1 . . Authchips . | . . . . . . . Time 67 | . . . . 67 . . Total Part Build Rating 4 | . . . . 4 . . Parts Repaired 1 | . . . 1 . . . Time 32 | . . . 32 . . . Parts Recycled . | . . . . . . . Recycled Matter . | . . . . . . . Retrieved Matter . | . . . . . . . Retrieved Components . | . . . . . . . Parts Scanalyzed . | . . . . . . . Part Schematics Acquired . | . . . . . . . Parts Damaged . | . . . . . . . Bothacking | -11 -10 -10 -8 -7 -7 -7 ------------ Run | Yrd Mat Sub Mat Fac Low Low Used RIF Installer . | . . . . . . . Robots Hacked . | . . . . . . . Non-combat . | . . . . . . . Combat . | . . . . . . . Robot Hacks Applied . | . . . . . . . Relay Couplers Released 3 | . . . . 3 . . Programmers 3 | . . . . 3 . . Fabnet Peak Effective % . | . . . . . . . Robots Rewired . | . . . . . . . Allies Hacked . | . . . . . . . Hacks Repelled . | . . . . . . . Allies | -11 -10 -10 -8 -7 -7 -7 -------- Run | Yrd Mat Sub Mat Fac Low Low Total Allies . | . . . . . . . Largest Group . | . . . . . . . Highest-Rated Group . | . . . . . . . Highest-Rated Ally . | . . . . . . . Total Orders . | . . . . . . . Ally Attacks . | . . . . . . . Total Damage . | . . . . . . . Kills . | . . . . . . . Allies Corrupted . | . . . . . . . Allies Melted . | . . . . . . . Intel | -11 -10 -10 -8 -7 -7 -7 ------- Run | Yrd Mat Sub Mat Fac Low Low Robot Analysis Total . | . . . . . . . Derelict Logs Recovered 2 | . . 1 . . 1 . Drone Launches . | . . . . . . . Drone Recoveries . | . . . . . . . Exploration | -11 -10 -10 -8 -7 -7 -7 ------------- Run | Yrd Mat Sub Mat Fac Low Low Turns Passed 9894 | 178 1002 3246 1259 3266 792 151 Spaces Moved 4792 | 100 387 1192 625 1751 561 176 Core 301 | 15 . . . . 195 91 Treads 1791 | 85 387 1192 127 . . . Legs 1795 | . . . 498 1115 97 85 Wheels 905 | . . . . 636 269 . Hover . | . . . . . . . Flight . | . . . . . . . Fastest Speed 50 | 50 160 240 120 101 50 50 Average Speed 167 | 143 198 240 144 147 111 83 Slowest Speed 340 | 160 240 240 330 340 192 120 Overloaded Moves . | . . . . . . . Propulsion Burnouts . | . . . . . . . Robots Hopped . | . . . . . . . Cave-ins Triggered . | . . . . . . . Exploration Rate (%) 44 | 6 54 49 66 43 76 18 Regions Visited 6 Branch Regions 3 Pre-discovered Areas 2 | . . 1 . . 1 . Known Exits Taken 2 | . . . 1 1 . . Unknown Exits Taken 4 | 1 1 1 . . 1 . Scrap Searched 19 | . . 16 . . 2 1 Spaces Dug 36 | . 1 9 . 19 7 . Terrain Destroyed 566 | . 1 150 98 255 62 . Melee 21 | . . . . 17 4 . Projectile 45 | . 1 18 10 13 3 . AOE 500 | . . 132 88 225 55 . Terrain Rammed . | . . . . . . . Walls Destroyed . | . . . . . . . Machines Disabled . | . . . . . . . Actions | -11 -10 -10 -8 -7 -7 -7 --------- Run | Yrd Mat Sub Mat Fac Low Low Total 5961 | 121 553 1419 865 2115 709 179 Wait 467 | . 113 63 69 99 123 . Move 4786 | 99 386 1191 624 1750 560 176 Hop . | . . . . . . . Pick Up 92 | 8 14 24 27 18 . 1 Fast Attach 35 | 3 . . 17 11 2 2 Attach 32 | 4 . 5 9 10 4 . Detach 2 | . . . . 2 . . Swap 77 | . 3 13 19 40 2 . Drop 80 | . 2 19 39 17 3 . Fire 359 | 7 35 103 61 142 11 . Melee 23 | . . . . 19 4 . Ram . | . . . . . . . Kick . | . . . . . . . Crush . | . . . . . . . Escape Stasis 6 | . . . . 6 . . Rewire . | . . . . . . . Trap 2 | . . 1 . 1 . . Miscellaneous . | . . . . . . . Route ------- -11/Scrapyard -10/Materials (discovered 3 exits: [*Mat] / [*Min] / *Sub) -10/Subcaves (discovered 2 exits: *Mat / [*Rec]) -8/Materials (discovered 3 exits: *Fac x3) -7/Factory (discovered 3 exits: *Fac / *Low x2) -7/Lower Caves -7/Lower Caves History --------- Turn | Location | Event 7 | -11/Scrapyard | Discovered new exit (range 16) 179 | -11/Scrapyard | Entered Materials 313 | -10/Materials | Build established: Mutant 748 | -10/Materials | Discovered new exit (range 7) 865 | -10/Materials | Discovered new exit (range 11) 1162 | -10/Materials | Discovered new exit (range 9) 1181 | -10/Materials | Entered Subcaves 1599 | -10/Subcaves | Visited Clippyterm 2204 | -10/Subcaves | A swath of the cavern ceiling suddenly collapsed 2719 | -10/Subcaves | Shifting Twisted Machinery released Sub. Power Source 2721 | -10/Subcaves | Shifting Twisted Machinery released Battle Cannon 3552 | -10/Subcaves | Discovered new exit (range 16) 3562 | -10/Subcaves | Core integrity fell below 50% 4175 | -10/Subcaves | Discovered new exit (range 14) 4201 | -10/Subcaves | Core integrity fell below 20% 4427 | -10/Subcaves | Entered Materials 4427 | -8/Materials | Evolved 4 slots: Propulsion x2, Utility x2 5092 | -8/Materials | Repaired Sub. Machine Gun 5627 | -8/Materials | First assault squad dispatched 5638 | -8/Materials | Identified exit to Factory 5686 | -8/Materials | Entered Factory 5686 | -7/Factory | Evolved 2 slots: Utility x2 7076 | -7/Factory | Build established: Hacker-Mutant 7116 | -7/Factory | Discovered new exit (range 8) 7128 | -7/Factory | Identified exit to Factory 7436 | -7/Factory | Central database locked down 7651 | -7/Factory | Identified exit to Lower Caves 7746 | -7/Factory | System corruption reached 10% 8237 | -7/Factory | Fabricated Cld. VTOL Module (x1) 8886 | -7/Factory | First assault squad dispatched 8911 | -7/Factory | Core integrity fell below 50% 8952 | -7/Factory | Entered Lower Caves 9243 | -7/Lower Caves | Spotted B-75 Beast 9646 | -7/Lower Caves | Released all parts (7) 9648 | -7/Lower Caves | Core integrity fell below 20% 9675 | -7/Lower Caves | Lost 7 parts (2n5u) 9740 | -7/Lower Caves | Discovered new exit (range 7) 9744 | -7/Lower Caves | Entered another Lower Caves area 9793 | -7/Lower Caves | Attracted the attention of an 0b10 checkpoint 9895 | -7/Lower Caves | Destroyed by G-50 Soldier with Heavy Laser Last Messages --------------- 09780_ Searching scrap... 09780_ Found Unknown Protection. 09780_ Found 34 Matter. 09782_ Acquired 41 matter. 09786_ Acquired Unknown Protection. 09786_ Identified Weapon Shielding. 09787_ Acquired 34 matter. 09793_ System corrupted: Aluminum Leg rejected. 09793_ Y-54 Guardian: "INTERCEPTING UNREGISTERED DERELICT." 09793_ Acquired Aluminum Leg. 09814_ System corrupted: IFF burst signal emitted. 09840_ Connecting with WAR.Sys... 09840_ Current location identified: Lower Caves >>Open Door Sealed Heavy Doors opened. 09847_ System corrupted: Substantial component data lost. 09866_ M1O%0JQQ:GJCBKB #:R,ANO8G1GRDSGR G1RW/ Map ----- +----------------------------------------------------+ | ??####?????????????### #????????????????????????? | | ### #?????????????# #########?????????????????? | | ###???????????# ### #?????????????????? | | # "##########?## #??????????????????? | | ?# * ### #?####?????????????? | | ##" ##?# ##????????????? | | #"" "# ## ####??# ##???????????? | | ## ### ## #?????# ##??????????? | | "# #?#### ### #????# #??????????? | | """ ### #????# #?## #????# ##?????????? | | # # ""## #????## ##??# ##???## ###???????? | | ### #### ?????####?### #????# # # # ###?????? | | ##?# ###??????????# ###### # #?????? | | ???#### #????????????# # # #?????? | | ??????? #????????????# ######## ##?????? | | ????????#????????????# #####?# ## # #?????? | | ???????????????####### #?###### # ##?????? | | ???????????????# # #??????## ###??????? | | ???????????????# """ # ######??# ###????????? | | ???????????????# """ # ## #### #??????????? | | ???????????????# """ # ### #??????????? | | ???????????????# """ ###### #??????????? | | ???????????????# ##???# #####??????????? | | ???????????##### ##??## ##????????????? | | ???????????# gg #### ##???????????? | | ???????????# #### g @ ##??????????? | | ????????????????# ## ##?????????? | | ????????????????# #### ### #?????????? | | ????????????????# #??# #?## #????????? | | ???????????????# #??# #??## #???????? | | ?????????????? ??## #???? #??????? | | ?????????????# ???## #???### #?????? | | ???????????? ##???# #?????# #?????? | | ??????????? ##????#### #?????# #?????? | | ??????????###### #?????????# ##?????? #?????? | | ???????????????## #??????????###???????? ##?????? | | ????????????????####??????????????????????#??????? | | ?????????????????????????????????????????????????? | | ?????????????????????????????????????????????????? | | ?????????????????????????????????????????????????? | | ?????????????????????????????????????????????????? | | ?????????????????????????????????????????????????? | | ?????????????????????????????????????????????????? | | ?????????????????????????????????????????????????? | | ?????????????????????????????????????????????????? | | ?????????????????????????????????????????????????? | | ?????????????????????????????????????????????????? | | ?????????????????????????????????????????????????? | | ?????????????????????????????????????????????????? | | ?????????????????????????????????????????????????? | +----------------------------------------------------+ Best States ------------- Heat Dissipation 61 Energy Generation 18 Energy Capacity 310 Matter Stores 300 Matter Capacity 300 Sight Range 21 Robot Scan Range 15 Terrain Scan Range 16 Terrain Scan Density 10 Jamming Range 12 EM Shielding 2 Weapon Shielding 33 Evasion (%) 55 Targeting Accuracy 6 Recoil Reduction 4 Offensive Hacking 30 Item Schematics ----------------- Cld. VTOL Module | -7/Factory | Hacked Robot Schematics ------------------ None Fabricated ------------ Cld. VTOL Module | x1 | -7/Factory Alien Tech Used ----------------- None Achievements -------------- None Challenges ------------ None Game ------ Seed InsulationSubatomicGravjet Manual? 0 Play Time 01:06:34 Cumulative 163.2 hours Start 2024.04.30 @ 20:40:56 End 2024.04.30 @ 21:47:44 Sessions 1 Manual Loads 0 Difficulty Rogue Special Mode None Game No. 64 Rogue 50 Adventurer 14 Explorer 0 Win Type - Total 11 Types 9/0/0/1/0/0/0/0/1 Lore% 62 Gallery% 75 Achievement% 63 Wizard Run 0 Options --------- Layout 2 ASCII 0 Keyboard 0 Movement Mouse Keybinds 0 Fullscreen 1 Font 20/SmallcapsGlow Map View 50x44 Zoom Use 0% Tactical HUD 1 Map Filters NONE Filters NONE Steam 1 RUN: 503258ff-dc03-483b-b816-40ad69a27d6b